fUSD/lending_fUSD_20250421
["ID","MTS","AMOUNT","RATE_DAILY","PERIOD"]
[358562480,1745262646283,-500.0,0.00043835,7]
[358562481,1745262646294,-500.0,0.00043835,7]
[358562482,1745262646303,-500.0,0.00043835,7]
[358562483,1745262646312,-500.0,0.00043835,7]
[358562484,1745262646321,-500.0,0.00043835,7]
[358562485,1745262646331,-500.0,0.00043835,7]
[358562486,1745262646340,-813.34,0.00043835,7]
[358562487,1745262646350,-500.0,0.00043835,7]
[358562488,1745262646360,-500.0,0.00043835,7]
[358562489,1745262646369,-500.0,0.00043835,7]
[358562491,1745262646379,-500.0,0.00043835,7]
[358562492,1745262646389,-500.0,0.00043835,7]
[358562493,1745262646399,-500.0,0.00043835,7]
[358562494,1745262646408,-500.0,0.00043835,7]
[358562495,1745262646418,-500.0,0.00043835,7]
[358562496,1745262646428,-500.0,0.00043835,7]
[358562497,1745262646438,-527.40990915,0.00043835,7]
[358562498,1745262646448,-1002.24,0.00043835,7]
[358562500,1745262646457,-500.0,0.00043835,7]
[358562502,1745262646468,-500.0,0.00043835,7]
[358562504,1745262646478,-500.0,0.00043835,7]
[358562507,1745262646487,-771.07,0.00043835,7]
[358562509,1745262646497,-1333.11,0.00043835,7]
[358562511,1745262646506,-500.0,0.00043835,7]
[358562513,1745262646515,-500.0,0.00043835,7]
[358562515,1745262646525,-500.0,0.00043835,7]
[358562517,1745262646534,-500.0,0.00043835,7]
[358562519,1745262646543,-500.0,0.00043835,7]
[358562521,1745262646552,-628.4,0.00043835,7]
[358562523,1745262646562,-500.0,0.00043835,7]
[358562524,1745262646571,-815.47,0.00043835,7]
[358562525,1745262646581,-500.0,0.00043835,7]
[358562526,1745262646590,-500.0,0.00043835,7]
[358562527,1745262646600,-500.0,0.00043835,7]
[358562528,1745262646610,-524.82,0.00043835,7]
[358562529,1745262646620,-1119.66,0.00043835,7]
[358562530,1745262646629,-500.0,0.00043835,7]
[358562531,1745262646638,-500.0,0.00043835,7]
[358562532,1745262646647,-772.26,0.00043835,7]
[358562533,1745262646658,-500.0,0.00043835,7]
[358562534,1745262646667,-773.41,0.00043835,7]
[358562535,1745262646677,-500.0,0.00043835,7]
[358562536,1745262646686,-500.0,0.00043835,7]
[358562537,1745262646696,-500.0,0.00043835,7]
[358562538,1745262646706,-500.0,0.00043835,7]
[358562539,1745262646716,-500.0,0.00043835,7]
[358562540,1745262646725,-500.0,0.00043835,7]
[358562541,1745262646734,-349.1095234,0.00043835,7]
[358562542,1745262646744,-500.0,0.00043835,7]
[358562543,1745262646753,-500.0,0.00043835,7]
[358562544,1745262646763,-500.0,0.00043835,7]
[358562545,1745262646772,-500.0,0.00043835,7]
[358562546,1745262646782,-500.0,0.00043835,7]
[358562547,1745262646791,-544.42752104,0.00043835,7]
[358562548,1745262646801,-500.0,0.00043835,7]
[358562549,1745262646811,-500.0,0.00043835,7]
[358562550,1745262646820,-500.0,0.00043835,7]
[358562551,1745262646830,-500.0,0.00043835,7]
[358562552,1745262646839,-751.72,0.00043835,7]
[358562553,1745262646848,-500.0,0.00043835,7]
[358562554,1745262646858,-1156.4,0.00043835,7]
[358562555,1745262646867,-500.0,0.00043835,7]
[358562556,1745262646876,-500.0,0.00043835,7]
[358562557,1745262646885,-500.0,0.00043835,7]
[358562558,1745262646895,-995.02,0.00043835,7]
[358562559,1745262646904,-298.49501163,0.00043835,7]
[358562560,1745262646913,-500.0,0.00043835,7]
[358562561,1745262646922,-500.0,0.00043835,7]
[358562562,1745262646932,-500.0,0.00043835,7]
[358562563,1745262646941,-806.44,0.00043835,7]
[358562564,1745262646950,-500.0,0.00043835,7]
[358562565,1745262646959,-500.0,0.00043835,7]
[358562566,1745262646969,-501.72196206,0.00043835,7]
[358562567,1745262646978,-500.0,0.00043835,7]
[358562568,1745262646987,-500.0,0.00043835,7]
[358562569,1745262646997,-500.0,0.00043835,7]
[358562570,1745262647007,-513.65292952,0.00043835,7]
[358562571,1745262647015,-174.45501604,0.00043835,7]
[358562572,1745262647025,-500.0,0.00043835,7]
[358562573,1745262647035,-500.0,0.00043835,2]
[358562574,1745262647046,-500.0,0.00043835,7]
[358562575,1745262647057,-500.0,0.00043835,7]
[358562576,1745262647068,-500.0,0.00043835,7]
[358562577,1745262647078,-500.0,0.00043835,7]
[358562578,1745262647088,-500.0,0.00043835,7]
[358562579,1745262647099,-500.0,0.00043835,7]
[358562580,1745262647108,-500.0,0.00043835,7]
[358562581,1745262647118,-500.0,0.00043835,7]
[358562582,1745262647129,-1018.28,0.00043835,7]
[358562583,1745262647140,-500.0,0.00043835,7]
[358562584,1745262647149,-500.0,0.00043835,7]
[358562585,1745262647159,-500.0,0.00043835,7]
[358562586,1745262647168,-500.0,0.00043835,7]
[358562587,1745262647178,-500.0,0.00043835,7]
[358562588,1745262647189,-500.0,0.00043835,7]
[358562589,1745262647200,-500.0,0.00043835,7]
[358562590,1745262647209,-318.97945535,0.00043835,7]
[358562591,1745262647219,-500.0,0.00043835,7]
[358562592,1745262647229,-500.0,0.00043835,7]
[358562593,1745262647239,-947.95,0.00043835,7]
[358562594,1745262647248,-500.0,0.00043835,7]
[358562595,1745262647258,-500.0,0.00043835,7]
[358562596,1745262647268,-553.98824571,0.00043835,7]
[358562597,1745262647279,-4357.71,0.00043835,7]
[358562598,1745262647290,-500.0,0.00043835,7]
[358562599,1745262647304,-534.76144215,0.00043835,7]
[358562600,1745262647316,-500.0,0.00043835,7]
[358562601,1745262647326,-500.0,0.00043835,7]
[358562602,1745262647336,-1000.0,0.00043835,7]
[358562603,1745262647346,-579.54145069,0.00043835,7]
[358562604,1745262647356,-160.63324,0.00043835,7]
[358562605,1745262647366,-500.0,0.00043835,7]
[358562606,1745262647376,-1101.98,0.00043835,7]
[358562607,1745262647386,-500.0,0.00043835,7]
[358562608,1745262647395,-500.0,0.00043835,7]
[358562609,1745262647405,-500.0,0.00043835,7]
[358562610,1745262647415,-500.0,0.00043835,7]
[358562611,1745262647425,-940.65,0.00043835,7]
[358562612,1745262647434,-2037.64,0.00043835,7]
[358562613,1745262647444,-705.99,0.00043835,7]
[358562614,1745262647454,-613.44249931,0.00043835,7]
[358562615,1745262647463,-500.0,0.00043835,7]
[358562616,1745262647473,-500.0,0.00043835,7]
[358562617,1745262647483,-943.69,0.00043835,7]
[358562618,1745262647492,-1391.15,0.00043835,7]
[358562619,1745262647502,-502.30352225,0.00043835,7]
[358562620,1745262647512,-500.0,0.00043835,7]
[358562621,1745262647522,-500.0,0.00043835,7]
[358562622,1745262647532,-500.0,0.00043835,7]
[358562623,1745262647542,-500.0,0.00043835,7]
[358562624,1745262647551,-1115.54,0.00043835,7]
[358562625,1745262647560,-500.0,0.00043835,7]
[358562626,1745262647571,-872.51,0.00043835,7]
[358562627,1745262647580,-500.0,0.00043835,7]
[358562628,1745262647590,-500.0,0.00043835,7]
[358562629,1745262647600,-500.0,0.00043835,7]
[358562630,1745262647610,-500.0,0.00043835,7]
[358562631,1745262647620,-1740.68,0.00043835,7]
[358562632,1745262647630,-500.0,0.00043835,7]
[358562633,1745262647639,-500.0,0.00043835,7]
[358562634,1745262647649,-745.9,0.00043835,7]
[358562635,1745262647659,-500.0,0.00043835,7]
[358562636,1745262647669,-500.0,0.00043835,7]
[358562637,1745262647679,-979.74,0.00043835,7]
[358562638,1745262647689,-500.0,0.00043835,7]
[358562639,1745262647698,-661.63,0.00043835,7]
[358562640,1745262647708,-971.91,0.00043835,7]
[358562641,1745262647719,-580.4556801,0.00043835,7]
[358562642,1745262647729,-1020.83,0.00043835,7]
[358562643,1745262647739,-1500.98,0.00043835,7]
[358562644,1745262647749,-500.0,0.00043835,7]
[358562645,1745262647760,-1796.43,0.00043835,7]
[358562646,1745262647770,-500.0,0.00043835,7]
[358562647,1745262647780,-1496.23,0.00043835,7]
[358562648,1745262647790,-500.0,0.00043835,7]
[358562649,1745262647799,-500.0,0.00043835,7]
[358562650,1745262647809,-529.79302844,0.00043835,7]
[358562651,1745262647820,-500.0,0.00043835,7]
[358562652,1745262647830,-500.0,0.00043835,7]
[358562653,1745262647840,-500.0,0.00043835,7]
[358562654,1745262647849,-500.0,0.00043835,7]
[358562655,1745262647860,-500.0,0.00043835,7]
[358562656,1745262647869,-500.0,0.00043835,7]
[358562657,1745262647879,-500.0,0.00043835,7]
[358562658,1745262647889,-202.82236561,0.00043835,7]
[358562659,1745262647899,-509.15819936,0.00043835,7]
[358562660,1745262647908,-504.87962596,0.00043835,7]
[358562661,1745262647919,-500.0,0.00043835,7]
[358562662,1745262647930,-161.043555,0.00043835,7]
[358562663,1745262647940,-500.0,0.00043835,7]
[358562664,1745262647950,-500.0,0.00043835,7]
[358562665,1745262647964,-500.0,0.00043835,7]
[358562666,1745262647974,-500.0,0.00043835,7]
[358562667,1745262647984,-500.0,0.00043835,7]
[358562668,1745262647994,-500.0,0.00043835,7]
[358562669,1745262648004,-500.0,0.00043835,7]
[358562670,1745262648014,-702.97,0.00043835,7]
[358562671,1745262648024,-500.0,0.00043835,7]
[358562672,1745262648033,-995.48,0.00043835,7]
[358562673,1745262648044,-707.23,0.00043835,7]
[358562674,1745262648057,-500.0,0.00043835,7]
[358562675,1745262648067,-1906.76,0.00043835,7]
[358562676,1745262648078,-1469.14,0.00043835,7]
[358562677,1745262648088,-500.0,0.00043835,7]
[358562678,1745262648098,-500.0,0.00043835,7]
[358562679,1745262648111,-500.0,0.00043835,7]
[358562680,1745262648122,-500.0,0.00043835,7]
[358562681,1745262648132,-500.0,0.00043835,7]
[358562682,1745262648142,-707.51,0.00043835,7]
[358562683,1745262648152,-500.0,0.00043835,7]
[358562684,1745262648161,-163.20272186,0.00043835,7]
[358562685,1745262648171,-500.0,0.00043835,7]
[358562686,1745262648182,-500.0,0.00043835,7]
[358562687,1745262648192,-500.0,0.00043835,7]
[358562688,1745262648202,-3269.58,0.00043835,7]
[358562689,1745262648212,-500.0,0.00043835,7]
[358562690,1745262648222,-2826.23,0.00043835,7]
[358562691,1745262648231,-1068.11,0.00043835,7]
[358562692,1745262648241,-500.0,0.00043835,7]
[358562693,1745262648251,-529.9803303,0.00043835,7]
[358562694,1745262648261,-1420.36,0.00043835,7]
[358562695,1745262648270,-500.0,0.00043835,7]
[358562696,1745262648279,-500.0,0.00043835,7]
[358562697,1745262648289,-500.0,0.00043835,7]
[358562698,1745262648299,-500.0,0.00043835,7]
[358562699,1745262648309,-500.0,0.00043835,7]
[358562700,1745262648320,-500.0,0.00043835,7]
[358562701,1745262648330,-1956.1,0.00043835,7]
[358562702,1745262648340,-500.0,0.00043835,7]
[358562703,1745262648350,-500.0,0.00043835,7]
[358562704,1745262648360,-500.0,0.00043835,7]
[358562705,1745262648370,-506.11782053,0.00043835,7]
[358562706,1745262648380,-500.0,0.00043835,7]
[358562707,1745262648390,-579.6198087,0.00043835,7]
[358562708,1745262648400,-1532.99,0.00043835,7]
[358562709,1745262648409,-500.0,0.00043835,7]
[358562710,1745262648419,-500.0,0.00043835,7]
[358562711,1745262648428,-500.0,0.00043835,7]
[358562712,1745262648438,-500.0,0.00043835,7]
[358562713,1745262648448,-500.0,0.00043835,7]
[358562714,1745262648458,-500.0,0.00043835,7]
[358562715,1745262648468,-3203.67,0.00043835,7]
[358562716,1745262648478,-647.93,0.00043835,7]
[358562717,1745262648488,-588.7,0.00043835,7]
[358562718,1745262648498,-832.93,0.00043835,7]
[358562719,1745262648508,-500.0,0.00043835,7]
[358562720,1745262648518,-500.0,0.00043835,7]
[358562721,1745262648528,-1372.86,0.00043835,7]
[358562722,1745262648538,-500.0,0.00043835,7]
[358562723,1745262648548,-500.0,0.00043835,7]
[358562724,1745262648558,-500.0,0.00043835,7]
[358562725,1745262648569,-552.98,0.00043835,7]
[358562726,1745262648579,-500.0,0.00043835,7]
[358562727,1745262648589,-557.35541065,0.00043835,7]
[358562728,1745262648600,-500.0,0.00043835,7]
[358562729,1745262648610,-500.0,0.00043835,7]
[358562730,1745262648620,-502.04150899,0.00043835,7]
[358562731,1745262648630,-500.0,0.00043835,7]
[358562732,1745262648640,-207.49750375,0.00043835,7]
[358562733,1745262648650,-500.0,0.00043835,7]
[358562734,1745262648660,-500.0,0.00043835,7]
[358562735,1745262648670,-2522.1,0.00043835,7]
[358562736,1745262648680,-500.0,0.00043835,7]
[358562737,1745262648690,-154848.65,0.00043835,7]
[358562738,1745262648700,-2096.63,0.00043835,7]
[358562739,1745262648711,-500.0,0.00043835,7]
[358562740,1745262648721,-169.70041414,0.00043835,7]
[358562741,1745262648731,-500.0,0.00043835,7]
[358562742,1745262648741,-919.61,0.00043835,7]
[358562743,1745262648752,-541.28,0.00043835,7]
[358562744,1745262648762,-3350.18,0.00043835,7]
[358562745,1745262648772,-500.0,0.00043835,7]
[358562746,1745262648782,-500.0,0.00043835,7]
[358562747,1745262648792,-500.0,0.00043835,7]
[358562748,1745262648802,-2497.77,0.00043835,7]
[358562749,1745262648813,-500.0,0.00043835,7]
[358562750,1745262648823,-2328.93,0.00043835,7]
[358562751,1745262648833,-1741.9,0.00043835,7]
[358562752,1745262648843,-575.53,0.00043835,7]
[358562753,1745262648853,-7513.34,0.00043835,7]
[358562754,1745262648863,-10053.5,0.00043835,7]
[358562755,1745262648872,-557.82082744,0.00043835,7]
[358562756,1745262648882,-837.99,0.00043835,7]
[358562757,1745262648892,-2469.8,0.00043835,7]
[358562758,1745262648902,-500.0,0.00043835,7]
[358562759,1745262648911,-816.3,0.00043835,7]
[358562760,1745262648921,-500.0,0.00043835,7]
[358562761,1745262648931,-2105.09,0.00043835,7]
[358562762,1745262648941,-500.0,0.00043835,7]
[358562763,1745262648951,-500.0,0.00043835,7]
[358562764,1745262648961,-500.0,0.00043835,7]
[358562765,1745262648971,-575.62,0.00043835,7]
[358562766,1745262648981,-1003.96,0.00043835,7]
[358562767,1745262648991,-500.0,0.00043835,7]
[358562768,1745262649001,-500.0,0.00043835,7]
[358562769,1745262649010,-500.0,0.00043835,7]
[358562770,1745262649021,-715.6,0.00043835,7]
[358562771,1745262649031,-1648.73,0.00043835,7]
[358562772,1745262649041,-895.25,0.00043835,7]
[358562773,1745262649055,-654.08,0.00043835,7]
[358562774,1745262649064,-500.0,0.00043835,7]
[358562775,1745262649074,-1407.15,0.00043835,7]
[358562776,1745262649084,-500.0,0.00043835,7]
[358562777,1745262649094,-672.41,0.00043835,7]
[358562778,1745262649104,-593.4,0.00043835,7]
[358562779,1745262649114,-2340.11,0.00043835,7]
[358562780,1745262649124,-500.0,0.00043835,7]
[358562781,1745262649134,-1471.6,0.00043835,7]
[358562782,1745262649143,-1398.87,0.00043835,7]
[358562783,1745262649153,-1620.46,0.00043835,7]
[358562784,1745262649164,-1361.65,0.00043835,7]
[358562785,1745262649174,-500.0,0.00043835,7]
[358562786,1745262649184,-500.0,0.00043835,7]
[358562787,1745262649193,-500.0,0.00043835,7]
[358562788,1745262649203,-500.0,0.00043835,7]
[358562789,1745262649213,-500.0,0.00043835,7]
[358562790,1745262649223,-500.0,0.00043835,7]
[358562791,1745262649232,-500.0,0.00043835,7]
[358562792,1745262649242,-517.11623414,0.00043835,7]
[358562793,1745262649252,-500.0,0.00043835,7]
[358562794,1745262649261,-500.0,0.00043835,7]
[358562795,1745262649271,-532.59,0.00043835,7]
[358562796,1745262649281,-1101.97,0.00043835,7]
[358562797,1745262649291,-500.0,0.00043835,7]
[358562798,1745262649476,-572.79,0.00043835,7]
[358562799,1745262649488,-500.0,0.00043835,7]
[358562800,1745262649497,-500.0,0.00043835,7]
[358562801,1745262649507,-500.0,0.00043835,7]
[358562802,1745262649516,-970.26,0.00043835,7]
[358562803,1745262649525,-584.86,0.00043835,7]
[358562804,1745262649534,-972.46,0.00043835,7]
[358562805,1745262649544,-500.0,0.00043835,7]
[358562806,1745262649554,-650.59,0.00043835,7]
[358562807,1745262649563,-1035.24,0.00043835,7]
[358562808,1745262649573,-500.0,0.00043835,7]
[358562809,1745262649582,-500.0,0.00043835,7]
[358562810,1745262649591,-1746.7,0.00043835,7]
[358562811,1745262649600,-500.0,0.00043835,7]
[358562812,1745262649610,-774.82,0.00043835,7]
[358562813,1745262649619,-2816.38,0.00043835,7]
[358562814,1745262649628,-2485.3,0.00043835,7]
[358562815,1745262649637,-500.0,0.00043835,7]
[358562816,1745262649648,-500.0,0.00043835,7]
[358562817,1745262649658,-500.0,0.00043835,7]
[358562818,1745262649667,-500.0,0.00043835,7]
[358562819,1745262649676,-1391.93,0.00043835,7]
[358562820,1745262649686,-506.33,0.00043835,7]
[358562821,1745262649696,-500.0,0.00043835,7]
[358562822,1745262649705,-500.0,0.00043835,7]
[358562823,1745262649714,-765.13,0.00043835,7]
[358562824,1745262649723,-782.41,0.00043835,7]
[358562825,1745262649733,-500.0,0.00043835,7]
[358562826,1745262649743,-3271.45,0.00043835,7]
[358562827,1745262649753,-2510.45,0.00043835,7]
[358562828,1745262649763,-1786.61,0.00043835,7]
[358562829,1745262649772,-500.0,0.00043835,7]
[358562830,1745262649781,-500.0,0.00043835,7]
[358562831,1745262649791,-1413.89,0.00043835,7]
[358562832,1745262649800,-500.0,0.00043835,7]
[358562833,1745262649810,-554.9,0.00043835,7]
[358562834,1745262649820,-500.0,0.00043835,7]
[358562835,1745262649829,-500.0,0.00043835,7]
[358562836,1745262649840,-500.0,0.00043835,7]
[358562837,1745262649849,-627.86,0.00043835,7]
[358562838,1745262649859,-1541.92,0.00043835,7]
[358562839,1745262649868,-1150.26,0.00043835,7]
[358562840,1745262649877,-500.0,0.00043835,7]
[358562841,1745262649888,-541.74440077,0.00043835,7]
[358562842,1745262649898,-2422.45,0.00043835,7]
[358562843,1745262649908,-500.0,0.00043835,7]
[358562844,1745262649919,-511.96903733,0.00043835,7]
[358562845,1745262649929,-1394.85,0.00043835,7]
[358562846,1745262649940,-500.0,0.00043835,7]
[358562847,1745262649951,-500.0,0.00043835,7]
[358562848,1745262649960,-1713.5,0.00043835,7]
[358562849,1745262649969,-500.0,0.00043835,7]
[358562850,1745262649979,-998.83,0.00043835,7]
[358562851,1745262649988,-1333.94,0.00043835,7]
[358562852,1745262649998,-500.0,0.00043835,7]
[358562853,1745262650007,-2304.17,0.00043835,7]
[358562854,1745262650016,-3830.66,0.00043835,7]
[358562855,1745262650025,-651.0,0.00043835,7]
[358562856,1745262650034,-500.0,0.00043835,7]
[358562857,1745262650047,-1711.67,0.00043835,7]
[358562858,1745262650059,-500.0,0.00043835,7]
[358562859,1745262650069,-889.18,0.00043835,7]
[358562860,1745262650078,-500.0,0.00043835,5]
[358562861,1745262650087,-500.0,0.00043835,7]
[358562862,1745262650096,-500.0,0.00043835,7]
[358562863,1745262650106,-351.06159959,0.00043835,7]
[358562864,1745262650115,-1303.83,0.00043835,7]
[358562865,1745262650125,-500.0,0.00043835,7]
[358562866,1745262650134,-500.0,0.00043835,7]
[358562867,1745262650143,-500.0,0.00043835,7]
[358562868,1745262650152,-1328.03,0.00043835,7]
[358562869,1745262650161,-500.0,0.00043835,7]
[358562870,1745262650171,-3923.46,0.00043835,7]
[358562871,1745262650181,-500.0,0.00043835,7]
[358562872,1745262650191,-563.41,0.00043835,7]
[358562873,1745262650200,-1516.73,0.00043835,7]
[358562874,1745262650209,-500.0,0.00043835,7]
[358562875,1745262650219,-500.0,0.00043835,7]
[358562876,1745262650228,-500.0,0.00043835,7]
[358562877,1745262650238,-2217.55,0.00043835,7]
[358562878,1745262650247,-2217.55,0.00043835,7]
[358562879,1745262650257,-2217.55,0.00043835,7]
[358562880,1745262650266,-2217.55,0.00043835,7]
[358562881,1745262650276,-500.0,0.00043835,7]
[358562882,1745262650285,-884.33,0.00043835,7]
[358562883,1745262650294,-500.0,0.00043835,7]
[358562884,1745262650303,-689.73,0.00043835,7]
[358562885,1745262650313,-570.66484048,0.00043835,7]
[358562886,1745262650324,-938.68,0.00043835,7]
[358562887,1745262650333,-500.0,0.00043835,7]
[358562888,1745262650343,-2937.35,0.00043835,7]
[358562889,1745262650352,-500.0,0.00043835,7]
[358562890,1745262650361,-500.0,0.00043835,7]
[358562891,1745262650371,-500.0,0.00043835,7]
[358562892,1745262650380,-500.0,0.00043835,7]
[358562893,1745262650389,-508.29858572,0.00043835,2]
[358562894,1745262650399,-500.0,0.00043835,7]
[358562895,1745262650408,-1091.21,0.00043835,7]
[358562896,1745262650418,-500.0,0.00043835,7]
[358562897,1745262650427,-500.0,0.00043835,7]
[358562898,1745262650436,-3033.95,0.00043835,7]
[358562899,1745262650445,-1150.72,0.00043835,7]
[358562900,1745262650455,-500.0,0.00043835,7]
[358562901,1745262650464,-2452.83,0.00043835,7]
[358562902,1745262650474,-442.89519361,0.00043835,7]
[358562903,1745262650483,-500.0,0.00043835,2]
[358562904,1745262650492,-500.0,0.00043835,7]
[358562905,1745262650502,-500.0,0.00043835,7]
[358562906,1745262650512,-8206.64,0.00043835,7]
[358562907,1745262650522,-861.28,0.00043835,7]
[358562908,1745262650531,-500.0,0.00043835,2]
[358562909,1745262650540,-504.29347909,0.00043835,7]
[358562910,1745262650550,-3346.63,0.00043835,7]
[358562911,1745262650559,-500.0,0.00043835,7]
[358562912,1745262650569,-753.75,0.00043835,7]
[358562913,1745262650579,-500.0,0.00043835,7]
[358562914,1745262650588,-509.49946541,0.00043835,7]
[358562915,1745262650598,-500.0,0.00043835,7]
[358562916,1745262650607,-1281.01,0.00043835,7]
[358562917,1745262650616,-1240.15,0.00043835,7]
[358562918,1745262650625,-500.0,0.00043835,7]
[358562919,1745262650635,-623.23,0.00043835,7]
[358562920,1745262650645,-500.0,0.00043835,3]
[358562921,1745262650655,-500.0,0.00043835,7]
[358562922,1745262650664,-500.0,0.00043835,7]
[358562923,1745262650673,-500.0,0.00043835,7]
[358562924,1745262650683,-524.52,0.00043835,7]
[358562925,1745262650692,-647.24,0.00043835,7]
[358562926,1745262650702,-500.0,0.00043835,7]
[358562927,1745262650712,-500.0,0.00043835,7]
[358562928,1745262650721,-590.2124972,0.00043835,7]
[358562929,1745262650731,-924.64,0.00043835,7]
[358562930,1745262650739,-1158.03,0.00043835,7]
[358562931,1745262650749,-500.0,0.00043835,7]
[358562932,1745262650758,-500.0,0.00043835,7]
[358562933,1745262650768,-575.43842023,0.00043856,15]
[358562934,1745262650777,-2806.54372073,0.00043863,4]
[358562935,1745262650787,-1983.04679132,0.00043864,15]
[358562936,1745262650796,-500.0,0.00043873,10]
[358562937,1745262650805,-502.5045184,0.00043873,10]
[358562938,1745262650815,-2263.4586,0.00043888,30]
[358562939,1745262650825,-500.0,0.00043889,7]
[358562940,1745262650834,-150.0,0.00043889,7]
[358562941,1745262650843,-500.0,0.00043917,120]
[358562942,1745262650852,-302.89,0.00043917,120]
[358562943,1745262650862,-500.0,0.00043944,7]
[358562944,1745262650871,-200.0,0.00043944,7]
[358562945,1745262650880,-250.0,0.00043948,2]
[358562946,1745262650889,-14032.7186037,0.0004398,4]
[358562947,1745262650898,-575.43842023,0.00043986,15]
[358562948,1745262650908,-1983.04679132,0.00043994,15]
[358562949,1745262650917,-500.0,0.00043998,7]
[358562950,1745262650926,-976.0,0.00044,7]
[358562951,1745262650935,-101884.46887431,0.00044,120]
[358562952,1745262650944,-237.03422608,0.00044,120]
[358562953,1745262650954,-1000.0,0.00044,12]
[358562954,1745262650963,-1095.58100712,0.00044009,20]
[358562955,1745262650972,-500.0,0.00044053,7]
[358562956,1745262650981,-426.49,0.00044093,120]
[358562957,1745262650990,-500.0,0.00044108,7]
[358562958,1745262650999,-575.43842023,0.00044117,15]
[358562959,1745262651011,-1983.04679132,0.00044123,15]
[358562960,1745262651020,-500.0,0.00044163,7]
[358562961,1745262651029,-700.0,0.00044189,120]
[358562962,1745262651041,-500.0,0.00044218,7]
[358562963,1745262651053,-575.43842023,0.00044247,15]
[358562964,1745262651062,-1983.04679132,0.00044253,15]
[358562965,1745262651074,-500.0,0.00044272,7]
[358562966,1745262651083,-151.04810417,0.00044273,15]
[358562967,1745262651092,-1095.58100712,0.00044283,21]
[358562968,1745262651103,-500.0,0.00044283,2]
[358562969,1745262651112,-500.0,0.00044327,7]
[358562970,1745262651121,-500.0,0.00044372,7]
[358562971,1745262651131,-2217.55,0.00044372,7]
[358562972,1745262651140,-500.0,0.00044373,2]
[358562973,1745262651150,-500.0,0.00044373,10]
[358562974,1745262651159,-575.43842023,0.00044378,15]
[358562975,1745262651169,-500.0,0.00044382,7]
[358562976,1745262651178,-500.0,0.00044382,7]
[358562977,1745262651187,-500.0,0.00044382,7]
[358562978,1745262651197,-2217.55,0.00044382,7]
[358562979,1745262651206,-2217.55,0.00044382,7]
[358562980,1745262651215,-2217.55,0.00044382,7]
[358562981,1745262651224,-1983.04679132,0.00044382,15]
[358562982,1745262651233,-1731.461828,0.00044383,14]
[358562983,1745262651242,-1731.461828,0.00044383,14]
[358562984,1745262651251,-151.0,0.00044383,14]
[358562985,1745262651260,-500.0,0.00044383,7]
[358562986,1745262651269,-151.0,0.00044383,14]
[358562987,1745262651278,-151.0,0.00044383,14]
[358562988,1745262651287,-187.81996,0.00044383,14]
[358562989,1745262651296,-278.78290083,0.00044383,7]
[358562990,1745262651305,-187.81996,0.00044383,14]
[358562991,1745262651314,-500.0,0.00044383,7]
[358562992,1745262651324,-151.0,0.00044383,14]
[358562993,1745262651334,-180.155457,0.00044383,14]